bitfinex/quotes_SOLUSD_20241010
["timestamp","ask_amount","ask_price","bid_price","bid_amount"]
[1728547154876,7.1516,139.83,139.8,1.43045436]
[1728547155282,7.1516,139.83,139.79,25.0366]
[1728547158882,7.1521,139.82,139.78,15.1037]
[1728547159252,7.1521,139.82,139.77,0.8411354]
[1728547159881,20.25098,139.85,139.77,7.9955354]
[1728547160183,7.1527,139.81,139.77,7.9955354]
[1728547161558,7.1527,139.81,139.77,0.8411354]
[1728547162090,7.1521,139.82,139.77,7.9953354]
[1728547165159,7.1521,139.82,139.78,1.43057622]
[1728547165484,7.1521,139.82,139.78,7.154]
[1728547165694,7.1516,139.83,139.79,1.43045561]
[1728547167297,7.1516,139.83,139.79,7.1533]
[1728547167589,7.1521,139.82,139.78,25.0386]
[1728547172595,7.1521,139.82,139.78,17.8847]
[1728547176293,0.12549,139.85,139.77,0.8411354]
[1728547176294,7.1534,139.8,139.77,0.8411354]
[1728547181815,7.1527,139.81,139.77,2.2717741]
[1728547181995,7.1527,139.81,139.77,0.8411354]
[1728547182510,7.1531,139.8,139.77,0.8411354]
[1728547189219,20.0,139.83,139.77,2.27180631]
[1728547189397,7.1527,139.81,139.77,9.42620631]
[1728547191409,7.1527,139.81,139.77,7.9955354]
[1728547192729,7.1527,139.81,139.78,1.43058943]
[1728547192906,7.1527,139.81,139.77,7.9955354]
[1728547195627,7.1527,139.81,139.78,1.43059066]
[1728547195817,7.1527,139.81,139.77,7.9955354]
[1728547196438,7.1527,139.81,139.78,1.43057919]
[1728547197527,7.1527,139.81,139.78,1.43058819]
[1728547198033,7.1527,139.81,139.77,7.9955354]
[1728547198736,7.1527,139.81,139.78,1.4305914]
[1728547199620,7.1527,139.81,139.77,0.8411354]
[1728547204545,7.1527,139.81,139.77,2.27173066]
[1728547204920,0.12549,139.85,139.78,1.43059488]
[1728547205126,7.1521,139.82,139.78,8.58459488]
[1728547205429,7.1521,139.82,139.78,7.154]
[1728547206214,7.1521,139.82,139.79,1.43050343]
[1728547209039,7.1521,139.82,139.78,7.154]
[1728547209644,7.151,139.84,139.79,7.1534]
[1728547210024,20.0,139.85,139.79,7.1534]
[1728547210254,7.1516,139.83,139.79,7.1534]
[1728547210753,20.0,139.85,139.8,1.43032247]
[1728547211061,20.0,139.85,139.79,7.1534]
[1728547211062,7.1511,139.84,139.79,7.1534]
[1728547211353,7.1516,139.83,139.79,7.1534]
[1728547211669,7.1516,139.83,139.8,1.43032089]
[1728547211835,20.0,139.86,139.8,1.43032089]
[1728547212034,7.151,139.84,139.8,1.43032089]
[1728547213653,7.1516,139.83,139.79,7.1534]
[1728547214390,7.1516,139.83,139.8,1.43034332]
[1728547217555,7.1516,139.83,139.8,1.43035541]
[1728547218765,7.1516,139.83,139.79,7.1534]
[1728547220873,7.1516,139.83,139.8,1.43032748]
[1728547221969,7.1516,139.83,139.79,7.1534]
[1728547222359,7.1521,139.82,139.77,34.8289354]
[1728547222542,7.1521,139.82,139.77,41.9831354]
[1728547223170,7.1515,139.83,139.78,30.930784]
[1728547226478,7.1515,139.83,139.79,7.1534]
[1728547228360,7.1515,139.83,139.78,23.776884]
[1728547228361,7.1522,139.82,139.77,34.8289354]
[1728547228981,7.1522,139.82,139.78,8.5844922]
[1728547229165,7.1522,139.82,139.78,7.154]
[1728547235878,7.1516,139.83,139.78,7.154]
[1728547237895,7.1516,139.83,139.79,23.776884]
[1728547252821,7.1501,139.86,139.81,7.1525]
[1728547253711,7.1496,139.87,139.81,7.1525]
[1728547256021,7.1496,139.87,139.82,1.43011073]
[1728547256228,6.5386,139.89,139.82,8.58201073]
[1728547256519,27.1491,139.88,139.82,8.58201073]
[1728547258917,20.0,139.88,139.82,8.58201073]
[1728547259118,7.1495,139.87,139.81,33.9748]
[1728547259299,7.1495,139.87,139.82,23.776884]
[1728547265721,7.1495,139.87,139.83,1.42999855]
[1728547267211,7.1495,139.87,139.82,23.776884]
[1728547268826,7.1495,139.87,139.83,1.43002356]
[1728547269018,7.1495,139.87,139.82,23.776884]
[1728547269197,7.1495,139.87,139.82,30.928784]
[1728547272427,7.1502,139.86,139.82,23.776884]
[1728547280523,7.1495,139.87,139.83,1.43001761]
[1728547282441,20.0,139.89,139.84,23.776884]
[1728547282649,7.1485,139.89,139.85,1.4298364]
[1728547283831,20.0,139.89,139.85,1.4298364]
[1728547284822,20.0,139.89,139.85,7.1504]
[1728547285146,15.4292,139.94,139.84,37.42157852]
[1728547285352,7.1459,139.94,139.89,23.776884]
[1728547285645,7.1454,139.95,139.9,1.42932685]
[1728547287332,20.0,139.94,139.9,1.42932685]
[1728547288744,20.0,139.94,139.89,30.925184]
[1728547288745,7.1454,139.95,139.89,30.925184]
[1728547289322,15.0281,139.97,139.89,30.925184]
[1728547289530,7.1459,139.94,139.89,30.925184]
[1728547291448,20.12549,139.96,139.88,23.776884]
[1728547291622,7.1469,139.92,139.88,23.776884]
[1728547291828,7.1465,139.93,139.88,23.776884]
[1728547292130,7.1465,139.93,139.88,30.925784]
[1728547296973,20.12549,139.96,139.88,23.776884]
[1728547297249,7.146,139.94,139.89,7.148]
[1728547299143,7.146,139.94,139.9,23.776884]
[1728547302850,7.146,139.94,139.89,7.148]
[1728547306445,20.0,139.96,139.89,7.148]
[1728547306756,7.1464,139.93,139.89,7.148]
[1728547315353,7.146,139.94,139.89,7.148]
[1728547317033,7.146,139.94,139.88,16.3541]
[1728547317246,7.146,139.94,139.9,30.924684]
[1728547328850,20.0,139.96,139.92,7.1468]
[1728547328851,7.145,139.96,139.92,7.1468]
[1728547329051,7.145,139.96,139.93,1.42914315]
[1728547329255,6.293,139.99,139.93,1.42914315]
[1728547329561,7.1445,139.97,139.93,1.42914315]
[1728547332851,7.1445,139.97,139.92,7.1468]
[1728547334038,7.1445,139.97,139.93,8.57528978]
[1728547335160,20.0,139.99,139.94,7.1459]
[1728547335470,27.1434,139.99,139.95,1.42889474]
[1728547336638,27.1434,139.99,139.95,8.57419474]
[1728547338771,7.1434,139.99,139.95,8.57419474]
[1728547339571,27.1428,140.0,139.96,7.1448]
[1728547340270,17.8541,140.03,139.96,7.1448]
[1728547340271,7.1424,140.01,139.96,7.1448]
[1728547340654,7.1424,140.01,139.97,7.1443]
[1728547341568,20.0,140.0,139.97,8.57295388]
[1728547342865,20.0,140.0,139.97,7.1443]
[1728547348088,7.1424,140.01,139.97,7.1443]
[1728547348293,34.03781521,140.05,139.98,7.1438]
[1728547348294,7.1418,140.02,139.98,7.1438]
[1728547351786,7.1424,140.01,139.97,25.0048]
[1728547356270,7.1419,140.02,139.97,25.0048]
[1728547357388,20.0,140.02,139.98,30.920184]
[1728547358685,20.0,140.02,139.99,7.1433]
[1728547358879,20.0,140.02,139.99,8.57174464]
[1728547359695,7.1413,140.03,139.99,8.57174464]
[1728547360400,7.1413,140.03,139.99,7.1433]
[1728547367611,20.0,140.04,140.0,8.5708477]
[1728547367791,7.1403,140.05,140.01,7.1423]
[1728547370103,3.72085419,140.1,140.03,17.8525]
[1728547370104,31.79404759,140.1,140.03,17.8525]
[1728547370292,7.1377,140.1,140.05,30.916684]
[1728547371291,20.0,140.1,140.06,7.1397]
[1728547371688,20.0,140.1,140.05,41.626984]
[1728547371689,7.1368,140.12,140.07,8.56686485]
[1728547371892,7.1368,140.12,140.07,7.1392]
[1728547372706,7.1373,140.11,140.07,7.1392]
[1728547377024,7.1373,140.11,140.06,7.1396]
[1728547382694,16.1949,140.14,140.05,17.8501]
[1728547382695,20.0,140.1,140.05,17.8501]
[1728547382897,7.1386,140.09,140.05,17.8501]
[1728547384115,20.0,140.1,140.04,15.7045]
[1728547384427,7.1393,140.07,140.04,15.7045]
[1728547385222,0.12549,140.11,140.04,15.7045]
[1728547385411,7.1388,140.08,140.04,15.7045]
[1728547387334,7.1388,140.08,140.04,22.8452]
[1728547392906,0.12549,140.11,140.04,22.8452]
[1728547392907,0.12549,140.11,140.05,7.1402]
[1728547393121,7.1373,140.11,140.06,1.42779273]
[1728547393328,7.1373,140.11,140.07,7.1391]
[1728547402226,20.25098,140.13,140.04,15.7045]
[1728547402404,7.1386,140.09,140.04,22.8452]
[1728547403534,7.1386,140.09,140.05,7.1401]
[1728547403925,20.25098,140.13,140.04,15.7045]
[1728547404129,7.1377,140.1,140.06,7.1397]
[1728547410031,7.1382,140.09,140.05,24.9902]
[1728547412638,7.1378,140.1,140.05,24.9902]
[1728547413316,7.1378,140.1,140.06,7.1397]
[1728547419816,20.0,140.1,140.06,7.1397]
[1728547421423,7.1378,140.1,140.06,7.1397]
[1728547425927,20.25098,140.13,140.07,1.42773578]
[1728547426128,7.1372,140.11,140.07,1.42773578]
[1728547426331,7.1372,140.11,140.06,7.1397]
[1728547435534,7.1372,140.11,140.07,7.1392]
[1728547436554,7.1368,140.12,140.08,7.1387]
[1728547443470,7.1368,140.12,140.07,7.1391]
[1728547448372,7.1372,140.11,140.07,7.1391]
[1728547449954,7.1372,140.11,140.07,8.56671742]
[1728547450660,7.1372,140.11,140.07,7.1391]
[1728547450845,7.1368,140.12,140.07,7.1391]
[1728547453968,7.1368,140.12,140.08,7.1387]
[1728547458684,0.12549,140.12,140.05,17.8501]
[1728547458875,0.12549,140.12,140.05,24.9903]
[1728547458876,7.1379,140.1,140.05,24.9903]
[1728547460782,7.1379,140.1,140.06,7.1396]
[1728547464783,7.1374,140.11,140.06,7.1396]
[1728547478196,7.1374,140.11,140.07,7.1391]
[1728547479578,7.1379,140.1,140.05,24.9899]
[1728547481601,7.1379,140.1,140.05,17.8501]
[1728547481796,7.1379,140.1,140.06,7.1397]
[1728547485081,0.12549,140.12,140.06,7.1397]
[1728547485082,7.1374,140.11,140.06,7.1397]
[1728547490184,7.1378,140.1,140.06,7.1397]
[1728547490383,7.1386,140.09,140.05,17.8501]
[1728547491302,7.1386,140.09,140.05,24.9902]
[1728547492211,7.1378,140.1,140.05,24.9902]
[1728547492388,7.1378,140.1,140.06,7.1396]
[1728547496725,7.1383,140.09,140.05,24.9902]
[1728547497295,7.1388,140.08,140.04,22.8452]
[1728547497507,7.1388,140.08,140.04,15.7045]
[1728547498507,7.1388,140.08,140.04,22.8452]
[1728547499703,7.1383,140.09,140.04,22.8452]
[1728547502524,7.1383,140.09,140.04,15.7045]
[1728547502716,7.1379,140.1,140.05,8.5681525]
[1728547504629,7.1372,140.11,140.06,7.1397]
[1728547504836,20.0,140.1,140.06,7.1397]
[1728547505209,20.0,140.1,140.05,1.4279525]
[1728547505427,20.0,140.1,140.07,7.1392]
[1728547507165,20.0,140.1,140.04,33.556]
[1728547507166,20.0,140.1,140.06,7.1396]
[1728547510422,0.25098,140.12,140.04,33.556]
[1728547510632,7.1381,140.1,140.05,7.1401]
[1728547516034,7.1373,140.11,140.06,8.56710994]
[1728547517236,7.1373,140.11,140.06,7.1393]
[1728547527543,7.1373,140.11,140.05,23.776884]
[1728547527747,7.1373,140.11,140.07,7.1392]
[1728547528447,7.1382,140.09,140.04,33.556]
[1728547528652,7.1382,140.09,140.04,40.6964]
[1728547529353,7.1382,140.09,140.04,33.556]
[1728547529529,7.1382,140.09,140.05,7.1401]
[1728547556184,7.1382,140.09,140.05,8.56797896]
[1728547557084,7.1382,140.09,140.05,7.1401]
[1728547563296,7.1388,140.08,140.04,33.556]
[1728547563594,7.1388,140.08,140.04,40.6966]
[1728547564156,24.027864,140.12,140.04,40.6966]
[1728547564472,7.1383,140.09,140.04,40.6966]
[1728547571485,20.0,140.09,140.01,17.8556]
[1728547571807,0.25098,140.08,140.01,17.8556]
[1728547571963,7.1404,140.05,140.01,17.8556]
[1728547573567,7.1404,140.05,140.01,24.9979]
[1728547573965,0.25098,140.08,140.01,24.9979]
[1728547574273,7.1398,140.06,140.01,24.9979]
[1728547575578,7.1398,140.06,140.02,7.1417]
[1728547580692,0.25098,140.08,140.01,17.8556]
[1728547581004,7.1407,140.05,140.01,17.8556]
[1728547584105,0.25098,140.08,140.01,17.8556]
[1728547584272,7.1408,140.04,140.01,17.8556]
[1728547584586,7.1413,140.03,140.0,16.2714]
[1728547584789,7.1413,140.03,139.99,7.1432]
[1728547585791,7.1413,140.03,139.98,24.3165]
[1728547585792,7.1413,140.03,139.98,31.4603]
[1728547587502,7.1419,140.02,139.98,25.0028]
[1728547587690,7.1423,140.01,139.98,17.859]
[1728547590009,0.12549,140.02,139.97,15.7159]
[1728547590324,7.1429,140.0,139.97,15.7159]
[1728547590606,7.1429,140.0,139.96,7.1448]
[1728547590790,7.1436,139.99,139.95,17.8627]
[1728547591288,20.0,139.97,139.92,7.155]
[1728547591496,7.1463,139.94,139.92,7.155]
[1728547591685,0.12549,139.96,139.92,7.155]
[1728547591686,7.1464,139.93,139.92,7.155]
[1728547591875,0.25098,139.96,139.92,7.155]
[1728547591876,7.1459,139.94,139.92,7.155]
[1728547593203,20.0,139.94,139.92,7.155]
[1728547593412,20.0,139.94,139.91,7.155]
[1728547593817,7.1454,139.95,139.91,7.155]
[1728547594013,20.0,139.94,139.91,7.155]
[1728547596212,7.1454,139.95,139.91,7.155]
[1728547596723,7.1454,139.95,139.91,7.1473]
[1728547597039,7.1454,139.95,139.92,7.155]
[1728547597831,7.1454,139.95,139.91,7.155]
[1728547601198,7.1473,139.92,139.9,7.155]
[1728547601401,7.1464,139.93,139.9,7.155]
[1728547602233,7.1464,139.93,139.89,7.155]
[1728547603221,7.1464,139.93,139.89,14.3034]
[1728547603404,7.146,139.94,139.89,14.3034]
[1728547604223,20.0,139.93,139.89,14.3034]
[1728547606014,20.0,139.93,139.9,1.42942739]
[1728547606216,20.0,139.93,139.89,14.3034]
[1728547606829,0.12549,139.96,139.91,7.155]
[1728547607136,7.27039,139.96,139.91,15.73166482]
[1728547607326,7.1455,139.95,139.91,14.3024]
[1728547609042,7.1455,139.95,139.91,7.155]
[1728547612331,20.25098,139.93,139.86,17.874]
[1728547612532,20.25098,139.93,139.82,16.4059]
[1728547612533,7.1479,139.9,139.85,7.1505]
[1728547614543,7.1479,139.9,139.86,1.42976253]
[1728547615241,7.1479,139.9,139.85,7.1505]
[1728547617051,7.1479,139.9,139.86,8.57963112]
[1728547617363,7.1479,139.9,139.86,7.1499]
[1728547627039,7.1479,139.9,139.84,23.776884]
[1728547627235,7.1485,139.89,139.85,7.1505]
[1728547627639,7.148,139.9,139.85,7.1505]
[1728547635767,7.1485,139.89,139.85,7.1505]
[1728547645370,7.1485,139.89,139.84,7.1508]
[1728547648345,7.1491,139.88,139.83,17.8784]
[1728547648549,20.0,139.9,139.83,17.8784]
[1728547648765,7.1501,139.86,139.82,23.5575]
[1728547649270,7.1501,139.86,139.82,16.4059]
[1728547649648,0.25098,139.89,139.82,16.4059]
[1728547649649,7.1505,139.85,139.82,16.4059]
[1728547651081,0.25098,139.89,139.82,16.4059]
[1728547651256,7.1501,139.86,139.82,16.4059]
[1728547652653,0.25098,139.89,139.82,23.5579]
[1728547652869,20.0,139.86,139.83,1.43002948]
[1728547653175,20.0,139.86,139.82,23.5579]
[1728547655657,7.1495,139.87,139.82,23.5579]
[1728547655862,7.1488,139.89,139.84,7.1506]
[1728547661966,7.148,139.9,139.85,8.58004806]
[1728547671073,7.148,139.9,139.85,7.1502]
[1728547672177,20.25098,139.92,139.85,7.1502]
[1728547672390,7.149,139.88,139.84,25.0278]
[1728547673272,7.149,139.88,139.84,17.8769]
[1728547674395,7.149,139.88,139.84,25.0279]
[1728547674776,20.0,139.91,139.84,17.8769]
[1728547674989,7.1485,139.89,139.85,7.1504]
[1728547677091,7.148,139.9,139.86,1.42976688]
[1728547678603,7.148,139.9,139.85,7.1504]
[1728547681598,7.1486,139.89,139.84,25.0277]
[1728547686177,7.1492,139.88,139.84,25.0277]
[1728547686595,7.1492,139.88,139.84,17.8769]
[1728547689280,20.0,139.87,139.8,17.8814]
[1728547689502,0.12549,139.86,139.8,17.8814]
[1728547689876,7.152,139.82,139.77,7.9953354]
[1728547690284,24.027864,139.86,139.78,8.58444718]
[1728547690285,7.1515,139.83,139.78,8.58444718]
[1728547690501,7.1515,139.83,139.78,7.1539]
[1728547691408,24.027864,139.86,139.77,7.9957354]
[1728547691589,24.027864,139.86,139.77,0.8411354]
[1728547691590,7.1526,139.81,139.77,0.8411354]
[1728547691906,7.152,139.82,139.77,7.9956354]
[1728547692080,24.027864,139.86,139.77,0.8411354]
[1728547692081,7.153,139.81,139.77,0.8411354]
[1728547692409,20.0,139.83,139.77,0.8411354]
[1728547692712,0.12549,139.82,139.77,0.8411354]
[1728547693014,0.25098,139.82,139.77,0.8411354]
[1728547693598,7.154,139.78,139.77,0.8411354]
[1728547693804,0.25098,139.82,139.77,0.8411354]
[1728547693984,7.154,139.78,139.77,0.8411354]
[1728547694181,27.40498,139.78,139.77,0.8411354]
[1728547694391,50.12148,139.78,139.77,0.8411354]
[1728547695785,43.87788,139.78,139.77,0.8411354]
[1728547696575,20.0,139.78,139.77,0.8411354]
[1728547696787,27.154,139.78,139.77,0.8411354]
[1728547697792,51.181864,139.78,139.77,0.8411354]
[1728547698215,27.40498,139.78,139.77,0.8411354]
[1728547699317,66.429264,139.78,139.77,0.8411354]
[1728547700013,73.86870277,139.78,139.77,0.8411354]
[1728547701289,7.1571,139.73,139.67,25.0582]
[1728547702602,61.914564,139.77,139.67,25.0582]
[1728547702806,7.1566,139.73,139.68,7.159]
[1728547703409,7.1571,139.72,139.67,25.0582]
[1728547704811,7.1571,139.72,139.67,26.4899127]
[1728547705221,7.1577,139.71,139.67,26.4899127]
[1728547705423,7.1572,139.72,139.67,25.0582]
[1728547707093,7.1572,139.72,139.67,17.8986]
[1728547707292,7.1572,139.72,139.68,8.59071049]
[1728547708311,7.1572,139.72,139.68,7.1591]
[1728547708509,7.1572,139.72,139.68,8.590711]
[1728547709412,7.1572,139.72,139.68,7.1591]
[1728547710500,7.1567,139.73,139.68,7.1591]
[1728547712221,7.1572,139.72,139.68,7.1591]
[1728547712419,0.12549,139.76,139.67,17.8986]
[1728547712606,7.1571,139.73,139.67,25.0582]
[1728547712930,20.25098,139.74,139.67,25.0582]
[1728547712931,7.1574,139.72,139.67,25.0582]
[1728547713217,20.25098,139.74,139.67,17.8986]
[1728547713423,7.1562,139.74,139.68,1.43158969]
[1728547713615,20.0,139.73,139.69,7.1586]
[1728547714404,20.0,139.77,139.69,17.896]
[1728547714609,20.0,139.73,139.69,25.0546]
[1728547714921,7.1556,139.75,139.7,7.1578]
[1728547715143,20.0,139.75,139.69,17.896]
[1728547715424,20.0,139.74,139.7,7.1581]
[1728547715631,20.0,139.74,139.69,17.896]
[1728547715835,22.68683877,139.78,139.69,17.896]
[1728547715836,20.0,139.75,139.69,31.54069452]
[1728547716216,7.1551,139.76,139.69,31.54069452]
[1728547716415,7.1551,139.76,139.72,7.1571]
[1728547716618,7.155,139.77,139.72,7.1571]
[1728547716804,7.1552,139.76,139.71,25.0505]
[1728547717425,20.0,139.75,139.71,25.0505]
[1728547717642,7.1552,139.76,139.71,25.0505]
[1728547718123,0.12549,139.77,139.71,17.8929]
[1728547718329,7.1558,139.75,139.71,17.8929]
[1728547721842,7.1531,139.8,139.74,23.776884]
[1728547722129,7.1537,139.79,139.73,24.3571]
[1728547722348,7.1542,139.78,139.73,31.5136]
[1728547722633,7.1537,139.79,139.74,7.1559]
[1728547724630,20.0,139.82,139.73,24.3571]
[1728547724837,7.1531,139.8,139.75,7.1551]
[1728547725838,7.1536,139.79,139.75,7.1551]
[1728547726009,7.1543,139.78,139.74,7.156]
[1728547731135,7.153,139.81,139.76,7.1546]
[1728547731344,7.153,139.8,139.76,7.1546]
[1728547731633,7.153,139.8,139.75,17.8884]
[1728547731634,7.1539,139.79,139.75,17.8884]
[1728547735917,20.0,139.79,139.75,25.0439]
[1728547738630,20.0,139.79,139.76,7.155]
[1728547739541,20.0,139.79,139.75,17.8884]
[1728547739542,20.0,139.79,139.75,25.0438]
[1728547740834,7.1532,139.8,139.75,25.0438]
[1728547741418,20.0,139.79,139.75,25.0438]
[1728547742535,7.27809,139.81,139.77,7.1544]
[1728547742742,20.0,139.81,139.77,7.1544]
[1728547742942,20.0,139.8,139.77,7.1544]
[1728547743448,7.1526,139.81,139.77,7.1544]
[1728547745855,17.8783,139.84,139.77,7.1544]
[1728547746025,20.0,139.81,139.78,7.154]
[1728547747749,20.0,139.81,139.77,7.1544]
[1728547749337,27.1511,139.84,139.79,7.1532]
[1728547750850,27.1511,139.84,139.77,41.662884]
[1728547751052,27.1511,139.84,139.8,7.153]
[1728547751741,27.1511,139.84,139.79,7.1535]
[1728547752050,20.0,139.82,139.79,7.1535]
[1728547756237,20.0,139.83,139.79,7.1535]
[1728547756636,20.0,139.83,139.8,7.1529]
[1728547756839,7.1511,139.84,139.8,7.1529]
[1728547760932,7.1521,139.82,139.78,7.1539]
[1728547761138,7.1541,139.78,139.76,15.3445]
[1728547761653,39.513474,139.84,139.76,15.3445]
[1728547761654,7.1537,139.79,139.76,15.3445]
[1728547770852,0.12549,139.82,139.73,24.2741]
[1728547771172,0.12549,139.82,139.74,7.156]
[1728547771173,7.154,139.79,139.74,7.156]
[1728547779572,7.1541,139.78,139.74,7.156]
[1728547781668,7.1536,139.79,139.75,7.1555]
[1728547782476,7.1532,139.8,139.76,8.58587617]
[1728547785151,7.1532,139.8,139.76,7.155]
[1728547785350,7.1532,139.8,139.76,8.58577883]
[1728547785659,7.1525,139.81,139.77,7.1545]
[1728547786179,20.0,139.82,139.78,1.43068424]
[1728547786479,20.0,139.82,139.79,7.1534]
[1728547787876,7.1516,139.83,139.79,7.1534]
[1728547788077,7.151,139.84,139.78,39.486184]
[1728547789179,0.25098,139.85,139.78,15.7093]
[1728547789377,7.1524,139.82,139.78,15.7093]
[1728547790962,7.1524,139.82,139.78,22.8633]
[1728547793361,7.1515,139.83,139.78,22.8633]
[1728547801185,7.1515,139.83,139.79,7.1535]
[1728547802688,7.1511,139.84,139.8,7.153]
[1728547802890,15.0885,139.88,139.8,7.153]
[1728547802891,7.1508,139.85,139.8,7.153]
[1728547803088,20.0,139.84,139.8,7.153]
[1728547803270,27.1511,139.84,139.8,7.153]
[1728547804205,7.1503,139.86,139.82,7.152]
[1728547804486,7.1498,139.87,139.83,1.43011273]
[1728547804691,7.1498,139.87,139.82,7.152]
[1728547805285,7.1498,139.87,139.83,1.43004352]
[1728547805690,7.1498,139.87,139.82,7.152]
[1728547807893,7.1499,139.87,139.82,7.1519]
[1728547808885,0.25098,139.89,139.82,39.313584]
[1728547808886,7.1489,139.88,139.82,39.313584]
[1728547809087,20.0,139.88,139.84,7.1506]
[1728547809794,7.1491,139.88,139.84,7.1506]
[1728547809998,20.0,139.88,139.84,7.1506]
[1728547810769,7.1491,139.88,139.84,7.1506]
[1728547814499,7.1491,139.88,139.83,25.0291]
[1728547815908,0.25098,139.89,139.83,17.8778]
[1728547816099,7.15,139.86,139.82,22.6886]
[1728547818198,7.15,139.86,139.82,15.5367]
[1728547819606,7.15,139.86,139.82,22.6887]
[1728547822086,7.1505,139.85,139.82,15.5367]
[1728547822398,7.1505,139.85,139.8,25.0347]
[1728547823002,7.1513,139.84,139.8,17.8821]
[1728547823384,7.1513,139.84,139.8,25.035]
[1728547827693,7.1506,139.85,139.8,25.035]
[1728547829405,7.1501,139.86,139.81,7.1521]
[1728547829814,7.1501,139.86,139.82,7.152]
[1728547830389,7.1501,139.86,139.8,17.8821]
[1728547830693,7.1501,139.86,139.81,7.1524]
[1728547832317,7.1501,139.86,139.82,1.43021258]
[1728547838114,7.1501,139.86,139.81,7.1524]
[1728547840100,7.1501,139.86,139.82,1.43018153]
[1728547842400,7.1501,139.86,139.81,7.1524]
[1728547845918,0.12549,139.87,139.8,17.8821]
[1728547846123,7.1511,139.84,139.8,25.035]
[1728547847702,44.027864,139.86,139.78,6.0639]
[1728547848013,44.027864,139.86,139.76,15.1406]
[1728547848014,7.1533,139.8,139.76,15.1406]
[1728547848218,7.1533,139.8,139.76,22.2955]
[1728547849223,6.11354207,139.8,139.76,22.2955]
[1728547849606,7.1519,139.83,139.77,1.43069135]
[1728547849812,7.1519,139.83,139.78,7.1536]
[1728547850003,7.1519,139.83,139.79,1.43047744]
[1728547851523,7.1511,139.84,139.79,8.58397744]
[1728547851829,7.1511,139.84,139.8,7.1529]
[1728547852118,7.1511,139.84,139.81,1.43032]
[1728547852458,7.1511,139.84,139.79,7.1535]
[1728547852920,7.1511,139.84,139.8,1.4303876]
[1728547853315,7.1511,139.84,139.79,7.1535]
[1728547853517,7.1511,139.84,139.8,1.43038892]
[1728547854605,7.1511,139.84,139.79,7.1535]
[1728547857328,0.12549,139.86,139.78,25.0385]
[1728547857507,7.1521,139.82,139.78,17.8846]
[1728547858702,7.1525,139.81,139.78,17.8846]
[1728547861923,7.1525,139.81,139.76,22.2955]
[1728547862106,7.1536,139.79,139.76,15.1406]
[1728547862437,20.25098,139.83,139.76,15.1406]
[1728547862602,7.153,139.81,139.76,22.2957]
[1728547863023,7.1532,139.8,139.76,22.2957]
[1728547863503,20.25098,139.83,139.76,22.2957]
[1728547863702,7.1526,139.81,139.76,22.2957]
[1728547864527,7.1526,139.81,139.76,15.1406]
[1728547864707,7.1526,139.81,139.77,7.1545]
[1728547868225,20.0,139.81,139.78,1.43056903]
[1728547868921,20.0,139.81,139.77,7.1545]
[1728547869124,7.1521,139.82,139.77,7.1545]
[1728547869515,7.1521,139.82,139.78,7.154]
[1728547870915,7.1525,139.81,139.76,22.2956]
[1728547883441,7.1531,139.8,139.76,22.2956]
[1728547885448,33.9281,139.83,139.73,22.8015]
[1728547885645,0.12549,139.82,139.73,15.6451]
[1728547885948,7.1555,139.76,139.73,15.6451]
[1728547886538,7.1547,139.77,139.73,15.6451]
[1728547888530,20.25098,139.8,139.72,25.0492]
[1728547888531,7.1552,139.76,139.72,25.0492]